lending/lending_fUSD_20251022
["ID","MTS","AMOUNT","RATE_DAILY","PERIOD"]
[392056121,1761125447621,-151.0,0.00034033,30]
[392056122,1761125447630,-188.077301,0.00034033,30]
[392056123,1761125447639,-188.077301,0.00034033,30]
[392056124,1761125447649,-188.077301,0.00034033,30]
[392056125,1761125447658,-188.077301,0.00034033,30]
[392056126,1761125447668,-153.566163,0.00034033,30]
[392056127,1761125447677,-154.890448,0.00034033,30]
[392056128,1761125447687,-151.0,0.00034033,30]
[392056129,1761125447697,-151.0,0.00034033,30]
[392056130,1761125447706,-207.576365,0.00034033,30]
[392056131,1761125447715,-207.576365,0.00034033,30]
[392056132,1761125447724,-207.576365,0.00034033,30]
[392056133,1761125447733,-207.576365,0.00034033,30]
[392056134,1761125447742,-376.978419,0.00034033,30]
[392056135,1761125447752,-376.978419,0.00034033,30]
[392056136,1761125447761,-376.978419,0.00034033,30]
[392056137,1761125447771,-376.978419,0.00034033,30]
[392056138,1761125447781,-1000.0,0.0003404,120]
[392056139,1761125447791,-841.848,0.0003404,120]
[392056140,1761125447801,-1023.81,0.00034069,120]
[392056141,1761125447811,-1425.0,0.00034071,2]
[392056142,1761125447821,-1000.0,0.00034071,2]
[392056143,1761125447831,-500.0,0.00034071,2]
[392056144,1761125447842,-344.58701757,0.00034073,5]
[392056145,1761125447852,-150.0,0.00034073,5]
[392056146,1761125447861,-151.0,0.00034077,7]
[392056147,1761125447870,-151.0,0.00034077,7]
[392056148,1761125447881,-500.0,0.0003408,30]
[392056149,1761125447890,-151.0,0.00034082,30]
[392056150,1761125447900,-157.2983,0.00034082,30]
[392056151,1761125447910,-154.394744,0.00034082,30]
[392056152,1761125447920,-188.077301,0.00034082,30]
[392056153,1761125447931,-188.077301,0.00034082,30]
[392056154,1761125447941,-188.077301,0.00034082,30]
[392056155,1761125447951,-188.077301,0.00034082,30]
[392056156,1761125447961,-151.0,0.00034082,30]
[392056157,1761125447970,-151.0,0.00034082,30]
[392056158,1761125447979,-187.79640561,0.00034082,5]
[392056159,1761125447990,-250.0,0.00034082,5]
[392056160,1761125448000,-250.0,0.00034082,5]
[392056161,1761125448010,-250.0,0.00034082,5]
[392056162,1761125448019,-250.0,0.00034082,5]
[392056163,1761125448030,-250.0,0.00034082,5]
[392056164,1761125448040,-250.0,0.00034082,5]
[392056165,1761125448050,-1000.0,0.00034082,5]
[392056166,1761125448060,-250.0,0.00034082,5]
[392056167,1761125448071,-1000.0,0.00034082,5]
[392056168,1761125448080,-1000.0,0.00034082,5]
[392056169,1761125448090,-250.0,0.00034082,5]
[392056170,1761125448099,-1000.0,0.00034082,5]
[392056171,1761125448109,-1000.0,0.00034082,5]
[392056172,1761125448118,-1000.0,0.00034082,5]
[392056173,1761125448127,-250.0,0.00034082,5]
[392056174,1761125448137,-1000.0,0.00034082,5]
[392056175,1761125448146,-1000.0,0.00034082,5]
[392056176,1761125448155,-250.0,0.00034082,5]
[392056177,1761125448165,-1000.0,0.00034082,5]
[392056178,1761125448174,-500.0,0.00034082,5]
[392056179,1761125448183,-250.0,0.00034082,5]
[392056180,1761125448193,-1000.0,0.00034082,5]
[392056181,1761125448202,-250.0,0.00034082,5]
[392056182,1761125448212,-1000.0,0.00034082,5]
[392056183,1761125448222,-500.0,0.00034082,5]
[392056184,1761125448231,-250.0,0.00034082,5]
[392056185,1761125448240,-1000.0,0.00034082,5]
[392056186,1761125448251,-1000.0,0.00034082,5]
[392056187,1761125448259,-500.0,0.00034082,5]
[392056188,1761125448269,-250.0,0.00034082,5]
[392056189,1761125448277,-1000.0,0.00034082,5]
[392056190,1761125448287,-1000.0,0.00034082,5]
[392056191,1761125448296,-500.0,0.00034082,5]
[392056192,1761125448305,-250.0,0.00034082,5]
[392056193,1761125448314,-1000.0,0.00034082,5]
[392056194,1761125448323,-1000.0,0.00034082,5]
[392056195,1761125448333,-250.0,0.00034082,5]
[392056196,1761125448341,-500.0,0.00034082,5]
[392056197,1761125448351,-1000.0,0.00034082,5]
[392056198,1761125448361,-500.0,0.00034082,5]
[392056199,1761125448370,-1000.0,0.00034082,5]
[392056200,1761125448379,-250.0,0.00034082,5]
[392056201,1761125448388,-500.0,0.00034082,5]
[392056202,1761125448401,-1000.0,0.00034082,5]
[392056203,1761125448411,-500.0,0.00034082,5]
[392056204,1761125448420,-1000.0,0.00034082,5]
[392056205,1761125448429,-250.0,0.00034082,5]
[392056206,1761125448439,-500.0,0.00034082,5]
[392056207,1761125448447,-500.0,0.00034082,5]
[392056208,1761125448455,-1000.0,0.00034082,5]
[392056209,1761125448464,-250.0,0.00034082,5]
[392056210,1761125448474,-500.0,0.00034082,5]
[392056211,1761125448483,-250.0,0.00034082,5]
[392056212,1761125448492,-500.0,0.00034082,5]
[392056213,1761125448505,-250.0,0.00034082,5]
[392056214,1761125448514,-500.0,0.00034082,5]
[392056215,1761125448524,-250.0,0.00034082,5]
[392056216,1761125448534,-500.0,0.00034082,5]
[392056217,1761125448544,-500.0,0.00034082,5]
[392056218,1761125448553,-250.0,0.00034082,5]
[392056219,1761125448564,-500.0,0.00034082,5]
[392056220,1761125448574,-250.0,0.00034082,5]
[392056221,1761125448583,-500.0,0.00034082,5]
[392056222,1761125448593,-250.0,0.00034082,5]
[392056223,1761125448602,-500.0,0.00034082,5]
[392056224,1761125448612,-250.0,0.00034082,5]
[392056225,1761125448621,-500.0,0.00034082,5]
[392056226,1761125448630,-250.0,0.00034082,5]
[392056227,1761125448640,-185.74202434,0.00034082,5]
[392056228,1761125448650,-250.0,0.00034082,5]
[392056229,1761125448659,-250.0,0.00034082,5]
[392056230,1761125448669,-250.0,0.00034082,5]
[392056231,1761125448677,-1000.0,0.00034082,5]
[392056232,1761125448687,-354.56405611,0.00034082,5]
[392056233,1761125448696,-1000.0,0.00034082,5]
[392056234,1761125448705,-1000.0,0.00034082,5]
[392056235,1761125448714,-151.0,0.00034082,5]
[392056236,1761125448724,-1000.0,0.00034082,5]
[392056237,1761125448733,-253.1323045,0.00034082,5]
[392056238,1761125448742,-1000.0,0.00034082,5]
[392056239,1761125448883,-1000.0,0.00034082,5]
[392056240,1761125448893,-1000.0,0.00034082,5]
[392056241,1761125448903,-1000.0,0.00034082,5]
[392056242,1761125448913,-1000.0,0.00034082,5]
[392056243,1761125448923,-1000.0,0.00034082,5]
[392056244,1761125448934,-500.0,0.00034082,5]
[392056245,1761125448943,-1000.0,0.00034082,5]
[392056246,1761125448952,-500.0,0.00034082,5]
[392056247,1761125448960,-500.0,0.00034082,5]
[392056248,1761125448969,-500.0,0.00034082,5]
[392056249,1761125448979,-500.0,0.00034082,5]
[392056250,1761125448988,-500.0,0.00034082,5]
[392056251,1761125448999,-500.0,0.00034082,5]
[392056252,1761125449009,-500.0,0.00034082,5]
[392056253,1761125449018,-500.0,0.00034082,5]
[392056254,1761125449028,-500.0,0.00034082,5]
[392056255,1761125449038,-500.0,0.00034082,5]
[392056256,1761125449047,-207.576365,0.00034082,30]
[392056257,1761125449057,-207.576365,0.00034082,30]
[392056258,1761125449067,-207.576365,0.00034082,30]
[392056259,1761125449076,-207.576365,0.00034082,30]
[392056260,1761125449085,-376.978419,0.00034082,30]
[392056261,1761125449095,-376.978419,0.00034082,30]
[392056262,1761125449104,-376.978419,0.00034082,30]
[392056263,1761125449113,-376.978419,0.00034082,30]
[392056264,1761125449123,-4815.0,0.00034082,2]
[392056265,1761125449133,-20362.0,0.00034082,2]
[392056266,1761125449143,-150.0,0.00034083,5]
[392056267,1761125449154,-500.0,0.00034083,5]
[392056268,1761125449163,-500.0,0.00034083,5]
[392056269,1761125449174,-500.0,0.00034083,5]
[392056270,1761125449189,-500.0,0.00034083,5]
[392056271,1761125449209,-150.0,0.00034083,2]
[392056272,1761125449218,-500.0,0.00034083,5]
[392056273,1761125449228,-500.0,0.00034083,5]
[392056274,1761125449237,-500.0,0.00034083,2]
[392056275,1761125449248,-500.0,0.00034089,30]
[392056276,1761125449257,-1023.81,0.00034089,120]
[392056277,1761125449267,-500.0,0.00034089,2]
[392056278,1761125449276,-200.0,0.0003409,2]
[392056279,1761125449286,-154.147727,0.0003409,30]
[392056280,1761125449295,-200.0,0.0003409,2]
[392056281,1761125449305,-188.077301,0.0003409,30]
[392056282,1761125449314,-188.077301,0.0003409,30]
[392056283,1761125449323,-188.077301,0.0003409,30]
[392056284,1761125449332,-188.077301,0.0003409,30]
[392056285,1761125449342,-200.0,0.0003409,2]
[392056286,1761125449351,-151.0,0.0003409,30]
[392056287,1761125449361,-287.728898,0.0003409,30]
[392056288,1761125449370,-207.576365,0.0003409,30]
[392056289,1761125449380,-207.576365,0.0003409,30]
[392056290,1761125449390,-207.576365,0.0003409,30]
[392056291,1761125449404,-207.576365,0.0003409,30]
[392056292,1761125449413,-376.978419,0.0003409,30]
[392056293,1761125449423,-376.978419,0.0003409,30]
[392056294,1761125449432,-376.978419,0.0003409,30]
[392056295,1761125449442,-376.978414,0.0003409,30]
[392056296,1761125449452,-197.0,0.00034093,2]
[392056297,1761125449462,-1000.0,0.00034098,2]
[392056298,1761125449475,-3433.3065715,0.00034098,2]
[392056299,1761125449484,-500.0,0.00034099,30]
[392056300,1761125449493,-1023.81,0.00034099,120]
[392056301,1761125449503,-500.0,0.00034099,2]
[392056302,1761125449513,-1999.0,0.00034099,120]
[392056303,1761125449522,-112800.44718122,0.000341,30]
[392056304,1761125449549,-556.826018,0.00029,30]
[392056305,1761125449558,-699.99846827,0.000341,30]
[392056307,1761125805640,200.12,0.00013636,2]
[392056308,1761125805821,200.12,0.00014354,2]
[392056309,1761125849189,336.00026839,0.00014282,2]
[392056335,1761126631533,-200.12,0.00015072,2]
[392056336,1761126631542,-195.0,0.00015083,2]
[392056337,1761126631551,-195.0,0.00015094,2]
[392056338,1761126631561,-195.0,0.00015179,2]
[392056339,1761126631571,-34.55989249,0.000154,2]
[392056340,1761126631587,-116.44010751,0.000154,2]
[392056341,1761126631596,-151.0,0.000154,2]
[392056342,1761126631606,-151.0,0.000154,2]
[392056343,1761126631616,-151.0,0.000154,2]
[392056344,1761126631626,-200.12,0.00015789,2]
[392056345,1761126631636,-200.12,0.00016507,2]
[392056346,1761126631647,-195.0,0.00016579,2]
[392056347,1761126631656,-175.63559431,0.00016579,2]
[392056348,1761126631665,-195.0,0.00016579,2]
[392056349,1761126631674,-606.53151133,0.00016579,2]
[392056350,1761126631684,-200.12,0.00017225,2]
[392056351,1761126631693,-274.0,0.00017246,2]
[392056352,1761126631702,-185.23607414,0.00017281,2]
[392056353,1761126631714,-40.76392586,0.00017281,2]
[392056354,1761126631723,-326.0,0.00017283,2]
[392056355,1761126631732,-249.0,0.00017318,2]
[392056356,1761126631742,-200.12,0.00017943,2]
[392056357,1761126631751,-1200.0,0.00018196,2]
[392056358,1761126631760,-151.0,0.00018197,2]
[392056359,1761126631771,-151.0,0.00018197,2]
[392056360,1761126631780,-151.0,0.00018197,2]
[392056361,1761126631790,-151.0,0.00018197,2]
[392056363,1761126631964,-151.0,0.00018197,2]
[392056364,1761126631974,-151.0,0.00018197,2]
[392056365,1761126631983,-151.0,0.00018197,2]
[392056366,1761126631993,-151.0,0.00018197,2]
[392056367,1761126632003,-151.0,0.00018197,2]
[392056368,1761126632012,-151.0,0.00018197,2]
[392056369,1761126632022,-151.0,0.00018197,2]
[392056370,1761126632031,-151.0,0.00018197,2]
[392056371,1761126632041,-151.0,0.00018197,2]
[392056372,1761126632051,-151.0,0.00018197,2]
[392056373,1761126632059,-1436.0,0.00018208,2]
[392056374,1761126632069,-886.0,0.00018245,2]
[392056375,1761126632079,-432.0,0.00018281,2]
[392056376,1761126632089,-1184.0,0.00018317,2]
[392056377,1761126632099,-1277.0,0.00018354,2]
[392056378,1761126632108,-1652.0,0.0001839,2]
[392056379,1761126632117,-484.0,0.00018426,2]
[392056380,1761126632127,-349.0,0.00018451,2]
[392056381,1761126632135,-1768.0,0.00018463,2]
[392056382,1761126632145,-423.0,0.00018488,2]
[392056383,1761126632157,-535.0,0.00018499,2]
[392056384,1761126632168,-258.0,0.00018524,2]
[392056385,1761126632177,-773.0,0.00018535,2]
[392056386,1761126632186,-332.0,0.00018561,2]
[392056387,1761126632195,-262.0,0.00018572,2]
[392056388,1761126632204,-189.0,0.00018608,2]
[392056389,1761126632213,-578.0,0.00018644,2]
[392056390,1761126632222,-200.12,0.0001866,2]
[392056391,1761126632232,-517.0,0.00018681,2]
[392056392,1761126632241,-793.0,0.00018717,2]
[392056393,1761126632251,-902.0,0.00018754,2]
[392056394,1761126632260,-502.0,0.0001879,2]
[392056395,1761126632269,-1155.0,0.00018826,2]
[392056396,1761126632283,-1333.0,0.00018863,2]
[392056397,1761126632293,-1308.0,0.00018899,2]
[392056398,1761126632302,-601.0,0.00018935,2]
[392056399,1761126632311,-1974.0,0.00018972,2]
[392056400,1761126632320,-200.12,0.00019378,2]
[392056401,1761126632330,-217.0,0.00019947,2]
[392056402,1761126632340,-200.12,0.00020096,2]
[392056403,1761126632349,-1000.0,0.00020548,2]
[392056404,1761126632360,-1000.0,0.00020548,2]
[392056405,1761126632370,-1000.0,0.00020548,2]
[392056406,1761126632379,-1000.0,0.00020548,2]
[392056407,1761126632389,-1000.0,0.00020548,2]
[392056408,1761126632398,-1000.0,0.00020548,2]
[392056409,1761126632409,-1000.0,0.00020548,2]
[392056410,1761126632420,-1000.0,0.00020548,2]
[392056411,1761126632430,-1000.0,0.00020548,2]
[392056412,1761126632439,-1000.0,0.00020548,2]
[392056413,1761126632449,-1000.0,0.00020548,2]
[392056414,1761126632459,-1000.0,0.00020548,2]
[392056415,1761126632468,-1000.0,0.00020548,2]
[392056416,1761126632478,-1000.0,0.00020548,2]
[392056417,1761126632488,-1000.0,0.00020548,2]
[392056418,1761126632498,-1000.0,0.00020548,2]
[392056419,1761126632508,-1000.0,0.00020548,2]
[392056420,1761126632517,-1000.0,0.00020548,2]
[392056421,1761126632527,-1000.0,0.00020548,2]
[392056422,1761126632536,-1000.0,0.00020548,2]
[392056423,1761126632546,-1000.0,0.00020548,2]
[392056424,1761126632555,-1000.0,0.00020548,2]
[392056425,1761126632565,-1000.0,0.00020548,2]
[392056426,1761126632575,-1000.0,0.00020548,2]
[392056427,1761126632584,-1000.0,0.00020548,2]
[392056428,1761126632595,-1000.0,0.00020548,2]
[392056429,1761126632605,-1000.0,0.00020548,2]
[392056430,1761126632614,-1000.0,0.00020548,2]
[392056431,1761126632624,-638.36468394,0.00020548,2]
[392056432,1761126632645,-361.63531606,0.00020548,2]
[392056433,1761126632655,-202.27251965,0.00020548,2]
[392056434,1761126632667,-578.01575375,0.00020548,2]
[392056435,1761126632686,-219.7117266,0.00020548,2]
[392056436,1761126632695,-1000.0,0.00020548,2]
[392056437,1761126632704,-1000.0,0.00020548,2]
[392056438,1761126632714,-1000.0,0.00020548,2]
[392056439,1761126632723,-1000.0,0.00020548,2]
[392056440,1761126632733,-1000.0,0.00020548,2]
[392056441,1761126632742,-200.12,0.00020813,2]
[392056442,1761126632753,-332.49652826,0.00020979,2]
[392056443,1761126632762,-200.12,0.00021531,2]
[392056444,1761126632773,-19.0284979,0.00021898,2]
[392056445,1761126632800,-141.9715021,0.00021898,2]
[392056446,1761126632810,-158.60857951,0.00021918,2]
[392056447,1761126632822,-4841.39142049,0.00021918,2]
[392056448,1761126632832,-482.57,0.00022141,2]
[392056449,1761126632842,-200.12,0.00022249,2]
[392056450,1761126632852,-1474.23,0.00022424,2]
[392056451,1761126632862,-446.0,0.00022497,2]
[392056452,1761126632872,-500.0,0.00022539,2]
[392056453,1761126632882,-500.0,0.00022539,2]
[392056454,1761126632892,-1801.0,0.00022542,2]
[392056455,1761126632902,-360.65065476,0.00022587,2]
[392056460,1761126637503,-304.26,0.00022539,2]
[392056461,1761126637515,-195.74,0.00022539,2]
[392056462,1761126637524,-500.0,0.00022539,2]
[392056463,1761126637533,-252.13,0.00022539,2]
[392056464,1761126637587,-132.17020315,0.00022539,2]
[392056465,1761126637597,-894.34002559,0.00022587,2]
[392056466,1761126637609,-624.2204535,0.00022587,2]
[392056467,1761126637663,-9.78886615,0.00022587,2]
[392056468,1761126637673,-1680.0,0.00022632,2]
[392056469,1761126637683,-775.0,0.00022677,2]
[392056470,1761126637693,-200.12,0.00022966,2]
[392056471,1761126637702,-200.12,0.00023684,2]
[392056472,1761126637712,-166.66,0.0002391,30]
[392056474,1761126637722,-200.12,0.00024402,2]
[392056476,1761126637730,-166.66,0.00024414,30]
[392056477,1761126637740,-490.65,0.00024658,2]
[392056479,1761126637750,-166.66,0.00024917,30]
[392056481,1761126637760,-500.0,0.00024932,2]
[392056484,1761126637770,-500.0,0.00024932,2]
[392056486,1761126637781,-1000.01,0.00025,2]
[392056488,1761126637790,-200.12,0.00025119,2]
[392056489,1761126637800,-322.49,0.00025145,2]
[392056491,1761126637810,-166.66,0.00025421,30]
[392056494,1761126637821,-1000.01,0.000255,2]
[392056496,1761126637831,-200.0,0.0002561,2]
[392056498,1761126637840,-200.12,0.00025837,2]
[392056500,1761126637849,-166.66,0.00025924,30]
[392056502,1761126637858,-166.66,0.00026427,30]
[392056504,1761126637868,-200.12,0.00026555,2]
[392056506,1761126637877,-200.12,0.00027273,2]
[392056508,1761126637886,-490.65,0.00027397,2]
[392056510,1761126637896,-389.76062678,0.00027553,2]
[392056512,1761126637905,-208.32714292,0.00028253,4]
[392056514,1761126637915,-410.747,0.00028375,19]
[392056516,1761126637924,-281.85,0.00028548,2]
[392056518,1761126637934,-666.0,0.00028908,3]
[392056520,1761126637943,-500.0,0.00029635,120]
[392056522,1761126637953,-250.0,0.00030104,7]
[392056524,1761126637963,-4000.0,0.00030137,30]
[392056526,1761126637972,-490.65,0.00030137,2]
[392056528,1761126637982,-500.0,0.00030212,120]
[392056530,1761126637991,-10810.13,0.00030638,2]
[392056532,1761126638000,-281.17,0.00030659,2]
[392056534,1761126638009,-500.0,0.00030789,120]
[392056535,1761126638019,-152.0,0.00031189,3]
[392056537,1761126638029,-500.0,0.00031366,120]
[392056539,1761126638039,-2000.0,0.000318,2]
[392056541,1761126638049,-500.0,0.00031942,120]
[392056544,1761126638060,-1000.0,0.00032,2]
[392056546,1761126638069,-500.0,0.00032519,120]
[392056548,1761126638080,-407.32814261,0.00032644,7]
[392056550,1761126638090,-500.0,0.00032644,7]
[392056552,1761126638099,-500.0,0.00032644,7]
[392056553,1761126638110,-490.65,0.00032877,2]
[392056556,1761126638120,-349.0,0.00033,12]
[392056557,1761126638130,-1000.0,0.00033,11]
[392056559,1761126638140,-720.0,0.00033,12]
[392056561,1761126638150,-1000.0,0.00033,10]
[392056563,1761126638161,-611.56394384,0.00033077,2]
[392056565,1761126638170,-500.0,0.00033096,120]
[392056567,1761126638180,-572.0,0.00033269,2]
[392056569,1761126638190,-786.0,0.00033269,2]
[392056571,1761126638200,-1380.023,0.00033269,2]
[392056573,1761126638209,-3410.0,0.00033269,2]
[392056575,1761126638218,-277.081,0.00033269,2]
[392056577,1761126638228,-605.0,0.00033269,2]
[392056579,1761126638237,-1311.0,0.00033269,2]
[392056581,1761126638247,-363.881,0.00033269,2]
[392056583,1761126638256,-817.0,0.00033269,2]
[392056585,1761126638266,-3158.9138265,0.00033269,2]
[392056672,1761126639606,-406.19,0.00033269,2]
[392056673,1761126639629,-2874.8961735,0.00033269,2]
[392056674,1761126639638,-907.265,0.00033269,2]
[392056675,1761126639648,-2548.0,0.00033269,2]
[392056676,1761126639657,-747.48,0.00033288,2]
[392056677,1761126639666,-150.0,0.00033377,3]
[392056678,1761126639676,-462.16185963,0.00033448,2]
[392056679,1761126639685,-1185.48788871,0.00033464,2]
[392056680,1761126639694,-500.0,0.00033466,7]
[392056681,1761126639707,-462.16185963,0.00033469,2]
[392056682,1761126639717,-3521.6019738,0.00033497,2]
[392056683,1761126639726,-4357.39005722,0.000335,2]
[392056684,1761126639736,-3521.6019738,0.00033502,2]
[392056685,1761126639746,-243.65827255,0.00033505,2]
[392056686,1761126639755,-462.16185963,0.00033506,2]
[392056687,1761126639765,-150.98380451,0.00033515,2]
[392056688,1761126639774,-322.16568708,0.00033545,2]
[392056689,1761126639784,-1185.48788871,0.00033547,2]
[392056690,1761126639794,-21154.56557557,0.00033554,2]
[392056691,1761126639835,-7410.32384866,0.00033554,2]
[392056692,1761126639844,-150.98380451,0.00033556,2]
[392056693,1761126639854,-243.65827255,0.00033566,2]
[392056694,1761126639864,-322.16568708,0.00033575,2]
[392056695,1761126639874,-4357.39005722,0.00033593,2]
[392056696,1761126639884,-243.65827255,0.000336,2]
[392056697,1761126639897,-3521.6019738,0.00033611,2]
[392056698,1761126639907,-4357.39005722,0.00033637,2]
[392056699,1761126639917,-8579.15687006,0.00033639,2]
[392056700,1761126639930,-10409.9999995,0.00033639,2]
[392056701,1761126639942,-9575.73255467,0.00033639,2]
[392056702,1761126639952,-1184.0,0.0003364,2]
[392056703,1761126640121,-28564.88942423,0.00033672,2]
[392056704,1761126640131,-1185.48788871,0.00033673,2]
[392056705,1761126640140,-500.0,0.00033673,120]
[392056706,1761126640149,-322.16568708,0.00033675,2]
[392056707,1761126640159,-150.98380451,0.00033699,2]
[392056708,1761126640168,-14661.88407977,0.0003376,2]
[392056709,1761126640178,-927.5,0.00033835,30]
[392056710,1761126640187,-840.5325096,0.000339,2]
[392056711,1761126640196,-1000.0,0.00033932,120]
[392056712,1761126640206,-1000.0,0.0003396,120]
[392056713,1761126640216,-840.53250955,0.00033978,2]
[392056714,1761126640225,-1184.0,0.00033986,2]
[392056715,1761126640235,-1000.0,0.00033987,120]
[392056716,1761126640244,-450.4235,0.0003399,2]
[392056717,1761126640254,-2500.0,0.0003399,2]
[392056718,1761126640263,-700.0,0.00033996,5]
[392056719,1761126640273,-1013.35612887,0.00033999,2]
[392056720,1761126640288,-1000.0,0.00034,15]
[392056721,1761126640297,-1000.0,0.00034,15]
[392056722,1761126640306,-1036.0,0.00034,15]
[392056723,1761126640315,-1000.0,0.00034,14]
[392056724,1761126640324,-1000.0,0.00034,14]
[392056725,1761126640333,-1000.0,0.00034,14]
[392056726,1761126640342,-1000.0,0.00034,14]
[392056727,1761126640352,-1000.0,0.00034,13]
[392056728,1761126640361,-1000.0,0.00034,13]
[392056729,1761126640370,-1000.0,0.00034,13]
[392056730,1761126640379,-2101.84772214,0.00034,2]
[392056731,1761126640389,-1919.27557444,0.00034,6]
[392056732,1761126640401,-184.04124602,0.00034,30]
[392056733,1761126640412,-150.0,0.00034,2]
[392056734,1761126640425,-785.7342435,0.00034,2]
[392056735,1761126640445,-150.0,0.00033769,3]
[392056736,1761126640455,-4214.2657565,0.00034,2]
[392056737,1761126640466,-2500.0,0.00034005,7]
[392056738,1761126640476,-1000.0,0.00034014,120]
[392056739,1761126640487,-1425.0,0.00034014,2]
[392056740,1761126640497,-419.0,0.00034025,2]
[392056741,1761126640506,-1425.0,0.0003404,2]
[392056742,1761126640516,-557.97778432,0.00034042,120]
[392056743,1761126640526,-840.53250955,0.00034055,2]
[392056744,1761126640535,-1013.35612878,0.00034066,2]
[392056745,1761126640545,-160.12600602,0.00034073,2]
[392056746,1761126640555,-500.0,0.00034073,5]
[392056747,1761126640565,-160.12601812,0.00034073,5]
[392056748,1761126640575,-160.12596453,0.00034073,2]
[392056749,1761126640587,-11620.55516284,0.00034078,2]
[392056750,1761126640599,-9104.35848126,0.00034078,2]
[392056751,1761126640611,-3208.6339149,0.00034078,2]
[392056752,1761126640622,-937.0085142,0.00034078,2]
[392056753,1761126640631,-500.0,0.00034083,5]
[392056754,1761126640640,-181.8893036,0.00034083,5]
[392056755,1761126640651,-318.1106964,0.00034083,5]
[392056756,1761126640660,-181.8893036,0.00034083,5]
[392056757,1761126640671,-318.1106964,0.00034083,5]
[392056758,1761126640679,-150.0,0.00034083,5]
[392056759,1761126640688,-150.0,0.00034083,5]
[392056760,1761126640698,-150.0,0.00034083,5]
[392056761,1761126640707,-150.0,0.00034083,2]
[392056762,1761126640716,-500.0,0.00034083,5]
[392056763,1761126640725,-150.0,0.00034083,2]
[392056764,1761126640734,-500.0,0.00034083,5]
[392056765,1761126640744,-500.0,0.00034083,5]
[392056766,1761126640753,-500.0,0.00034083,2]
[392056767,1761126640764,-434.0,0.00034083,5]
[392056768,1761126640773,-500.0,0.00034083,5]
[392056769,1761126640787,-150.0,0.00034083,5]
[392056770,1761126640796,-500.0,0.00034083,2]
[392056771,1761126640807,-510.0,0.00034083,5]
[392056772,1761126640817,-150.0,0.00034083,5]
[392056773,1761126640826,-7786.86013537,0.00034089,3]
[392056774,1761126640840,-325.70091321,0.00034089,3]
[392056779,1761126645639,-150.0,0.00034083,5]
[392056780,1761126645650,-148.6000038,0.00034089,3]
[392056781,1761126645694,-258.18888852,0.00034089,3]
[392056782,1761126645703,-500.0,0.00034089,2]
[392056783,1761126645714,-5930.93549648,0.0003409,3]
[392056784,1761126645726,-541.4307,0.0003409,3]
[392056785,1761126645801,-33952.91626203,0.0003409,3]
[392056786,1761126721670,195.0,0.00024793,120]
[392056787,1761126721823,195.0,0.0002687,120]
[392056788,1761126755850,175.0,0.000149,2]
[392056790,1761127083693,195.0,0.00026178,120]
[392056791,1761127146204,195.0,0.00026178,120]
[392056792,1761127365037,274.56,0.00013699,2]
[392056811,1761127831739,-274.56,0.00020187,2]
[392056813,1761127831750,-195.0,0.00021094,2]
[392056814,1761127831759,-281.63652984,0.00022,2]
[392056815,1761127831769,-905.42318611,0.0002203,2]
[392056816,1761127831778,-150.0,0.0002203,2]
[392056817,1761127831787,-195.0,0.00022206,2]